bitfinex/quotes_SOLUSD_20260202
["timestamp","ask_amount","ask_price","bid_price","bid_amount"]
[1770052821591,12.76867449,105.6,105.57,8.64602963]
[1770052821987,12.7664063,105.62,105.59,8.64602963]
[1770052822186,3.2985025,105.61,105.58,8.64602963]
[1770052822601,12.76592774,105.63,105.6,8.64602963]
[1770052822802,3.2985025,105.65,105.62,8.64602963]
[1770052823386,3.2985025,105.67,105.64,8.64602963]
[1770052823587,12.7621427,105.67,105.64,8.64602963]
[1770052823797,3.2985025,105.66,105.62,18.11349181]
[1770052824405,3.2985025,105.66,105.62,8.64602963]
[1770052824801,3.2985025,105.66,105.63,8.64602963]
[1770052825492,12.76299433,105.66,105.63,8.64602963]
[1770052826008,32.30458929,105.67,105.63,8.64602963]
[1770052826009,3.2985025,105.67,105.64,8.64602963]
[1770052826211,3.2985025,105.66,105.63,8.64602963]
[1770052827000,3.2985025,105.66,105.64,8.64602963]
[1770052827205,3.2985025,105.68,105.65,8.64602963]
[1770052827605,12.76170703,105.68,105.65,8.64602963]
[1770052827787,3.2985025,105.68,105.65,8.64602963]
[1770052827991,3.2985025,105.69,105.66,8.64602963]
[1770052828190,3.2985025,105.66,105.59,0.14216157]
[1770052828509,3.2985025,105.66,105.62,8.64602963]
[1770052829310,3.2985025,105.66,105.62,18.11339692]
[1770052829522,12.76287058,105.66,105.62,18.11339692]
[1770052830420,21.40890021,105.66,105.62,8.64602963]
[1770052830812,3.2985025,105.65,105.62,8.64602963]
[1770052830996,11.94453213,105.64,105.6,8.64602963]
[1770052831421,3.2985025,105.64,105.61,8.64602963]
[1770052831716,21.40927731,105.66,105.62,8.64602963]
[1770052832013,12.76293283,105.66,105.63,8.64602963]
[1770052833014,3.2985025,105.66,105.63,8.64602963]
[1770052833717,12.76294946,105.66,105.63,8.64602963]
[1770052835116,3.2985025,105.65,105.62,18.11388877]
[1770052835318,12.76294946,105.66,105.63,8.64602963]
[1770052835620,12.76294946,105.66,105.62,9.46785914]
[1770052835621,21.40897909,105.66,105.62,18.11388877]
[1770052835803,21.40897909,105.66,105.62,9.46785914]
[1770052836007,21.40897909,105.66,105.62,18.11388877]
[1770052837621,3.2985025,105.64,105.61,8.64602963]
[1770052837925,3.2985025,105.64,105.57,80.51364882]
[1770052837926,3.2985025,105.64,105.62,8.64602963]
[1770052838108,3.2985025,105.65,105.62,8.64602963]
[1770052838417,3.2985025,105.66,105.63,8.64602963]
[1770052838742,11.94453213,105.66,105.62,8.64602963]
[1770052838925,3.2985025,105.65,105.62,8.64602963]
[1770052839621,3.2985025,105.65,105.62,18.11367798]
[1770052840607,3.2985025,105.64,105.61,8.64602963]
[1770052840814,12.76419713,105.65,105.62,8.64602963]
[1770052841120,3.2985025,105.65,105.62,18.11385323]
[1770052841306,3.2985025,105.66,105.63,8.64602963]
[1770052841698,3.2985025,105.67,105.64,8.64602963]
[1770052841902,12.76230771,105.67,105.64,8.64602963]
[1770052842409,12.76230771,105.67,105.63,18.11289073]
[1770052843323,8.64602963,105.68,105.64,8.64602963]
[1770052843528,12.75878941,105.71,105.67,8.64602963]
[1770052843766,0.1,105.72,105.69,8.64602963]
[1770052844022,3.3985025,105.72,105.69,8.64602963]
[1770052845126,12.85749134,105.72,105.69,8.64602963]
[1770052845325,3.2985025,105.71,105.68,8.64602963]
[1770052845622,3.2985025,105.71,105.67,18.1092152]
[1770052846215,11.94453213,105.71,105.67,18.1092152]
[1770052846416,21.37063851,105.71,105.67,8.61149071]
[1770052846727,3.2985025,105.69,105.66,8.61149071]
[1770052846902,3.2985025,105.69,105.65,18.07670604]
[1770052847104,3.2985025,105.68,105.65,8.61149071]
[1770052848039,3.2985025,105.66,105.63,8.61149071]
[1770052848336,3.2985025,105.65,105.63,8.61149071]
[1770052848511,12.76286221,105.66,105.63,8.61149071]
[1770052849141,3.2985025,105.65,105.62,8.61149071]
[1770052849321,3.2985025,105.66,105.64,8.61149071]
[1770052851337,3.2985025,105.66,105.63,9.46681769]
[1770052851645,3.2985025,105.66,105.64,8.61149071]
[1770052852745,3.2985025,105.66,105.63,8.61149071]
[1770052852953,3.2985025,105.66,105.64,8.61149071]
[1770052853347,11.90999321,105.68,105.64,8.61149071]
[1770052853543,12.76127799,105.68,105.65,8.61149071]
[1770052853742,3.2985025,105.68,105.65,8.61149071]
[1770052854244,12.7611022,105.68,105.65,8.61149071]
[1770052855575,12.76044637,105.69,105.66,8.61149071]
[1770052856559,12.76044637,105.69,105.65,8.61149071]
[1770052856740,3.2985025,105.68,105.65,8.61149071]
[1770052857438,3.2985025,105.68,105.64,18.07760203]
[1770052857639,3.2985025,105.67,105.64,8.61149071]
[1770052858537,12.76194917,105.67,105.64,8.61149071]
[1770052858742,12.76194917,105.67,105.64,18.07755566]
[1770052859064,3.2985025,105.67,105.65,8.61149071]
[1770052860464,45.02653947,105.69,105.65,8.61149071]
[1770052860642,9.46118679,105.7,105.67,8.61149071]
[1770052860964,3.2985025,105.71,105.68,8.61149071]
[1770052861355,3.2985025,105.71,105.69,8.61149071]
[1770052861668,3.2985025,105.74,105.7,8.61149071]
[1770052861846,3.2985025,105.74,105.72,8.61149071]
[1770052862041,3.2985025,105.74,105.71,8.61149071]
[1770052862659,12.7560234,105.74,105.71,8.61149071]
[1770052863561,3.2985025,105.73,105.71,8.61149071]
[1770052863762,3.2985025,105.72,105.69,18.07295612]
[1770052864155,3.2985025,105.7,105.66,9.46383116]
[1770052864357,3.2985025,105.7,105.67,8.61149071]
[1770052864662,3.2985025,105.69,105.66,8.61149071]
[1770052865155,11.90999321,105.69,105.65,18.0761937]
[1770052865358,3.2985025,105.68,105.64,9.46596402]
[1770052865556,3.2985025,105.67,105.63,8.61149071]
[1770052865759,25.64671103,105.7,105.66,8.61149071]
[1770052866057,12.75933668,105.7,105.67,8.61149071]
[1770052866447,3.2985025,105.69,105.65,8.61149071]
[1770052866757,3.2985025,105.68,105.65,8.61149071]
[1770052867059,3.2985025,105.68,105.66,8.61149071]
[1770052867944,3.2985025,105.68,105.64,8.61149071]
[1770052868151,3.2985025,105.67,105.63,18.07804496]
[1770052868962,12.76239952,105.67,105.64,8.61149071]
[1770052872058,9.46296377,105.68,105.65,8.61149071]
[1770052872264,12.76146627,105.68,105.65,8.61149071]
[1770052872556,3.2985025,105.67,105.65,8.61149071]
[1770052872759,9.46213303,105.69,105.65,8.61149071]
[1770052872946,12.76063553,105.69,105.66,8.61149071]
[1770052873148,3.2985025,105.68,105.66,8.61149071]
[1770052873356,11.90999321,105.68,105.64,8.61149071]
[1770052873554,3.2985025,105.67,105.64,8.61149071]
[1770052873947,3.2985025,105.66,105.62,8.61149071]
[1770052874153,3.2985025,105.66,105.63,8.61149071]
[1770052874668,12.7614357,105.68,105.65,8.61149071]
[1770052875568,12.7614357,105.68,105.64,8.61149071]
[1770052876063,3.2985025,105.67,105.64,8.61149071]
[1770052876460,12.76211134,105.67,105.63,8.61149071]
[1770052876660,3.2985025,105.66,105.62,18.07939451]
[1770052876964,3.2985025,105.66,105.63,8.61149071]
[1770052878048,12.76111366,105.68,105.65,8.61149071]
[1770052878368,21.37260437,105.68,105.64,8.61149071]
[1770052878957,3.2985025,105.67,105.64,8.61149071]
[1770052879573,3.2985025,105.67,105.62,23.66975951]
[1770052879769,3.2985025,105.67,105.64,8.61149071]
[1770052879976,3.2985025,105.66,105.63,8.61149071]
[1770052880668,3.2985025,105.65,105.62,8.61149071]
[1770052881375,3.2985025,105.65,105.62,18.07934169]
[1770052882774,12.76374255,105.65,105.62,18.07934169]
[1770052882974,9.46389849,105.67,105.64,8.61149071]
[1770052883270,12.76240099,105.67,105.64,8.61149071]
[1770052883475,3.2985025,105.66,105.62,18.07934169]
[1770052883655,3.2985025,105.66,105.62,8.61149071]
[1770052883855,3.2985025,105.66,105.62,18.07926838]
[1770052884068,3.2985025,105.66,105.62,8.61149071]
[1770052884462,3.2985025,105.66,105.63,8.61149071]
[1770052884669,3.2985025,105.66,105.63,18.07830054]
[1770052884874,3.2985025,105.66,105.62,18.07897879]
[1770052885270,9.46521533,105.65,105.62,8.61149071]
[1770052885483,9.46521533,105.65,105.61,8.61149071]
[1770052885484,3.2985025,105.64,105.61,8.61149071]
[1770052886576,3.2985025,105.64,105.61,3.44816355]
[1770052886767,3.2985025,105.62,105.59,3.44816355]
[1770052887658,12.76651869,105.62,105.59,3.44816355]
[1770052887859,3.2985025,105.62,105.59,3.44816355]
[1770052888254,3.2985025,105.62,105.59,12.9187065]
[1770052888459,3.2985025,105.62,105.6,8.6236138]
[1770052888753,3.2985025,105.62,105.59,8.6236138]
[1770052889080,9.46749394,105.63,105.6,8.6236138]
[1770052889374,12.76599644,105.63,105.6,8.6236138]
[1770052890574,12.76599644,105.63,105.61,8.6236138]
[1770052890766,3.2985025,105.65,105.62,8.6236138]
[1770052891154,3.2985025,105.64,105.6,18.09315883]
[1770052891379,3.2985025,105.64,105.6,8.6236138]
[1770052891578,3.2985025,105.64,105.61,8.6236138]
[1770052892273,12.764974,105.64,105.61,8.6236138]
[1770052892972,3.2985025,105.63,105.61,8.6236138]
[1770052893562,3.2985025,105.63,105.59,18.0937606]
[1770052894662,3.2985025,105.63,105.6,8.6236138]
[1770052894862,3.2985025,105.63,105.61,8.6236138]
[1770052895276,3.2985025,105.63,105.6,8.6236138]
[1770052897586,3.2985025,105.63,105.61,8.6236138]
[1770052897785,1.15667356,105.63,105.61,8.6236138]
[1770052898581,10.62390099,105.63,105.6,8.6236138]
[1770052899486,10.62390099,105.63,105.59,8.6236138]
[1770052900372,10.85120183,105.62,105.58,9.47149081]
[1770052900570,2.22758803,105.62,105.58,18.09510461]
[1770052900770,2.22758803,105.62,105.58,8.6236138]
[1770052901887,2.22758803,105.61,105.56,33.15469364]
[1770052902091,2.22758803,105.61,105.57,18.09593607]
[1770052902494,11.69649746,105.61,105.57,18.09593607]
[1770052903588,2.22758803,105.6,105.57,18.09593607]
[1770052903768,2.22758803,105.6,105.56,23.68214069]
[1770052903972,2.22758803,105.61,105.58,8.6236138]
[1770052904274,2.22758803,105.6,105.57,8.6236138]
[1770052906388,2.22758803,105.6,105.57,8.62700476]
[1770052906587,2.22758803,105.6,105.58,8.62700476]
[1770052908785,2.22758803,105.61,105.58,8.62700476]
[1770052910191,10.85459279,105.61,105.56,9.47282205]
[1770052910377,2.22758803,105.6,105.57,3.4511393]
[1770052910778,2.22758803,105.6,105.58,3.4511393]
[1770052912698,2.22758803,105.6,105.57,12.92336492]
[1770052913211,2.22758803,105.6,105.58,3.4511393]
[1770052913490,11.69593645,105.62,105.59,3.4511393]
[1770052913697,2.22758803,105.61,105.59,3.4511393]
[1770052914112,2.22758803,105.61,105.58,3.4511393]
[1770052914980,2.22758803,105.62,105.59,3.4511393]
[1770052916000,2.22758803,105.61,105.58,3.4511393]
[1770052916197,2.22758803,105.61,105.56,12.92403515]
[1770052916198,2.22758803,105.6,105.56,12.92403515]
[1770052916402,2.22758803,105.6,105.57,3.4511393]
[1770052916797,2.22758803,105.58,105.56,3.4511393]
[1770052917006,2.22758803,105.58,105.55,12.92489027]
[1770052917184,11.69818183,105.59,105.56,3.4511393]
[1770052917390,2.22758803,105.58,105.54,9.67465546]
[1770052917703,2.22758803,105.58,105.55,3.4511393]
[1770052917893,2.22758803,105.58,105.54,13.12619482]
[1770052918897,2.22758803,105.56,105.54,0.2]
[1770052919087,9.47238798,105.57,105.53,0.2]
[1770052919088,2.22758803,105.54,105.53,0.2]
[1770052919493,2.22758803,105.55,105.53,0.2]
[1770052920105,2.22758803,105.55,105.53,13.12708467]
[1770052920305,28.54758803,105.58,105.54,12.92611455]
[1770052920611,2.22758803,105.56,105.53,3.6511393]
[1770052920787,2.22758803,105.55,105.53,0.2]
[1770052921187,2.22758803,105.54,105.53,0.2]
[1770052921397,12.92466941,105.56,105.53,0.2]
[1770052921707,23.68146252,105.57,105.53,0.2]
[1770052921708,2.22758803,105.57,105.54,3.4511393]
[1770052921908,2.22758803,105.56,105.53,9.67596031]
[1770052922113,2.22758803,105.55,105.53,0.2]
[1770052922409,2.22758803,105.54,105.5,13.12939661]
[1770052922713,2.22758803,105.56,105.53,12.92702566]
[1770052923102,2.22758803,105.57,105.54,3.4511393]
[1770052923302,11.69861164,105.59,105.56,3.4511393]
[1770052923502,2.22758803,105.6,105.57,3.4511393]
[1770052923808,2.22758803,105.59,105.53,0.28432314]
[1770052924002,2.22758803,105.58,105.55,3.4511393]
[1770052924405,2.22758803,105.57,105.54,3.4511393]
[1770052924907,33.14097282,105.61,105.52,3.4511393]
[1770052924908,2.22758803,105.55,105.52,3.4511393]
[1770052925386,2.22758803,105.56,105.53,3.4511393]
[1770052925591,2.22758803,105.57,105.54,3.4511393]
[1770052927307,11.70007332,105.57,105.54,3.4511393]
[1770052927513,2.22758803,105.57,105.54,3.4511393]
[1770052927689,2.22758803,105.57,105.54,12.92602155]
[1770052927886,2.22758803,105.57,105.54,3.4511393]
[1770052928089,2.22758803,105.56,105.53,3.4511393]
[1770052928610,2.22758803,105.56,105.53,12.92693198]
[1770052929495,12.92304071,105.58,105.53,12.92693198]
[1770052929807,2.22758803,105.58,105.55,3.4511393]
[1770052930112,2.22758803,105.58,105.53,33.16573866]
[1770052930414,2.22758803,105.58,105.54,3.4511393]
[1770052930602,2.22758803,105.58,105.55,3.4511393]
[1770052931202,2.22758803,105.58,105.55,12.92517022]
[1770052931509,2.22758803,105.59,105.56,3.4511393]
[1770052931708,2.22758803,105.59,105.57,3.4511393]
[1770052931902,2.22758803,105.6,105.58,3.4511393]
[1770052932106,2.22758803,105.63,105.59,3.4511393]
[1770052932293,2.22758803,105.63,105.61,3.4511393]
[1770052932494,2.22758803,105.62,105.59,3.4511393]
[1770052932908,2.22758803,105.61,105.57,3.4511393]
[1770052933195,2.22758803,105.6,105.57,12.92351321]
[1770052933498,2.22758803,105.6,105.57,3.4511393]
[1770052934197,2.22758803,105.6,105.57,12.92346526]
[1770052934395,11.69732422,105.6,105.57,3.4511393]
[1770052934601,2.22758803,105.59,105.57,3.4511393]
[1770052935094,9.46973619,105.6,105.57,3.4511393]
[1770052935299,2.22758803,105.6,105.57,3.4511393]
[1770052935820,5.67872733,105.59,105.55,9.47372206]
[1770052936035,2.22758803,105.58,105.55,12.92486136]
[1770052939118,9.47046727,105.6,105.56,3.4511393]
[1770052939119,12.92160657,105.6,105.56,3.4511393]
[1770052939306,2.22758803,105.6,105.57,3.4511393]
[1770052941326,11.69760812,105.6,105.57,3.4511393]
[1770052942604,2.22758803,105.59,105.56,12.92385446]
[1770052942804,2.22758803,105.59,105.56,3.4511393]
[1770052944335,2.22758803,105.58,105.54,12.92541075]
[1770052944623,5.67872733,105.58,105.54,12.92541075]
[1770052945308,2.22758803,105.58,105.54,12.92541075]
[1770052945909,2.22758803,105.58,105.54,3.4511393]
[1770052946122,2.22758803,105.55,105.51,3.4511393]
[1770052946309,2.22758803,105.55,105.52,3.4511393]
[1770052946504,11.70187231,105.55,105.52,3.4511393]
[1770052946704,2.22758803,105.53,105.5,13.12934728]
[1770052947313,2.22758803,105.54,105.51,12.92888309]
[1770052947611,2.22758803,105.54,105.52,3.4511393]
[1770052947815,2.22758803,105.55,105.52,3.4511393]
[1770052948423,2.22758803,105.57,105.53,12.92711769]
[1770052948624,2.22758803,105.56,105.53,12.92711769]
[1770052948834,2.22758803,105.56,105.52,12.92754665]
[1770052949716,3.4511393,105.56,105.52,12.92754665]
[1770052949917,5.67872733,105.55,105.5,0.2]
[1770052950104,2.22758803,105.53,105.5,13.12939585]
[1770052950310,2.22758803,105.55,105.52,3.4511393]
[1770052950708,2.22758803,105.55,105.51,3.4511393]
[1770052951429,2.22758803,105.55,105.52,12.92787148]
[1770052952128,2.22758803,105.57,105.54,3.4511393]
[1770052952425,2.22758803,105.57,105.53,3.4511393]
[1770052953626,11.69997695,105.57,105.53,3.4511393]
[1770052953944,2.22758803,105.56,105.53,3.4511393]
[1770052954533,2.22758803,105.57,105.53,3.4511393]
[1770052954829,2.22758803,105.59,105.56,3.4511393]
[1770052956032,2.22758803,105.59,105.55,9.47365076]
[1770052956033,2.22758803,105.58,105.55,12.92479006]
[1770052956417,2.22758803,105.58,105.54,9.47472454]
[1770052956617,2.22758803,105.57,105.54,12.92586384]
[1770052957110,2.22758803,105.57,105.55,12.92528099]
[1770052958016,2.22758803,105.58,105.56,3.4511393]
[1770052958417,2.22758803,105.59,105.56,3.4511393]
[1770052958627,2.22758803,105.6,105.57,3.4511393]
[1770052958849,2.22758803,105.6,105.56,3.4511393]
[1770052959137,2.22758803,105.59,105.56,3.4511393]
[1770052959627,2.22758803,105.59,105.57,12.92342794]
[1770052959822,2.22758803,105.59,105.57,3.4511393]
[1770052960022,2.22758803,105.59,105.56,12.92416883]
[1770052961234,2.22758803,105.59,105.57,12.92341892]
[1770052962437,2.22758803,105.59,105.56,12.92400364]
[1770052963045,2.22758803,105.59,105.56,9.47286434]
[1770052963221,2.22758803,105.58,105.54,12.92580916]
[1770052963420,5.67872733,105.58,105.54,12.92580916]
[1770052963620,2.22758803,105.57,105.54,12.92580916]
[1770052965650,2.22758803,105.56,105.52,12.92758765]
[1770052965853,2.22758803,105.55,105.52,12.92758765]
[1770052968123,2.22758803,105.54,105.51,12.92842496]
[1770052968318,2.22758803,105.54,105.52,9.47681841]
[1770052969329,2.22758803,105.55,105.52,3.45470944]
[1770052971251,2.22758803,105.55,105.52,12.93156477]
[1770052971627,2.22758803,105.57,105.54,3.45470944]
[1770052972253,2.22758803,105.57,105.55,3.45470944]
[1770052972453,2.22758803,105.57,105.54,3.45470944]
[1770052972758,2.22758803,105.56,105.52,12.93156477]
[1770052972930,2.22758803,105.55,105.52,3.45470944]
[1770052973126,2.22758803,105.53,105.5,9.67833674]
[1770052973331,2.22758803,105.52,105.5,0.2]
[1770052973548,2.22758803,105.52,105.49,3.45470944]
[1770052973831,2.22758803,105.52,105.48,12.93477421]
[1770052974353,2.22758803,105.51,105.47,3.45470944]
[1770052974657,2.22758803,105.49,105.46,12.93688178]
[1770052975929,2.22758803,105.51,105.48,3.45470944]
[1770052976832,2.22758803,105.5,105.47,3.45470944]
[1770052977334,2.22758803,105.49,105.46,3.45470944]
[1770052977744,2.22758803,105.49,105.46,12.93646108]
[1770052977951,2.22758803,105.49,105.47,3.45470944]
[1770052978882,2.22758803,105.49,105.47,12.93603095]
[1770052979163,2.22758803,105.51,105.48,3.45470944]
[1770052979453,2.22758803,105.5,105.47,3.45470944]
[1770052980253,2.22758803,105.5,105.45,23.70622744]
[1770052980254,2.22758803,105.49,105.45,12.9371954]
[1770052980558,2.22758803,105.48,105.45,3.45470944]
[1770052980857,2.22758803,105.47,105.44,13.13834483]
[1770052981548,5.68229747,105.48,105.44,13.13834483]
[1770052981755,5.68229747,105.48,105.45,3.45470944]
[1770052981756,2.22758803,105.48,105.45,3.45470944]
[1770052982853,2.22758803,105.49,105.46,3.45470944]
[1770052983657,2.22758803,105.5,105.47,3.45470944]
[1770052984956,2.22758803,105.51,105.48,3.45470944]
[1770052985366,2.22758803,105.5,105.47,3.45470944]
[1770052985667,2.22758803,105.5,105.46,36.64224631]
[1770052986043,2.22758803,105.49,105.46,12.93657592]
[1770052988563,26.34,105.54,105.48,3.45470944]
[1770052988564,2.22758803,105.53,105.48,3.45470944]
[1770052988766,2.22758803,105.53,105.5,3.45470944]
[1770052988963,2.22758803,105.52,105.49,3.45470944]
[1770052989161,11.70468979,105.52,105.48,12.9344619]
[1770052989358,2.22758803,105.51,105.48,12.9344619]
[1770052989559,2.22758803,105.51,105.47,12.93562303]
[1770052989876,2.22758803,105.51,105.49,9.47949365]
[1770052990079,2.22758803,105.51,105.49,3.45470944]
[1770052990384,2.22758803,105.51,105.48,12.93468441]
[1770052990567,4.27527085,105.54,105.49,12.93406332]
[1770052990568,12.93119269,105.53,105.49,12.93406332]
[1770052990755,2.22758803,105.53,105.5,3.45470944]
[1770052991266,2.22758803,105.55,105.52,3.45470944]
[1770052991469,2.22758803,105.55,105.53,3.45470944]
[1770052991670,2.22758803,105.57,105.54,3.45470944]
[1770052991855,2.22758803,105.57,105.55,3.45470944]
[1770052992182,2.22758803,105.59,105.56,3.45470944]
[1770052992359,2.22758803,105.59,105.57,3.45470944]
[1770052992672,2.22758803,105.59,105.58,3.45470944]
[1770052992878,2.22758803,105.59,105.57,3.45470944]
[1770052993055,2.22758803,105.6,105.57,3.45470944]
[1770052993256,2.22758803,105.6,105.57,12.92703746]
[1770052993459,2.22758803,105.6,105.58,3.45470944]
[1770052993891,2.22758803,105.6,105.57,12.92703746]
[1770052994379,2.22758803,105.6,105.57,9.47232802]
[1770052994562,2.22758803,105.6,105.57,18.09975487]
[1770052994874,2.22758803,105.6,105.58,8.62742685]
[1770052995063,2.22758803,105.6,105.57,18.09975487]
[1770052995977,2.22758803,105.6,105.57,8.62742685]
[1770052996160,2.22758803,105.6,105.57,18.09980447]
[1770052998265,2.22758803,105.6,105.58,8.62742685]
[1770053001792,2.22758803,105.61,105.59,8.62742685]
[1770053002978,2.22758803,105.61,105.58,18.09838708]
[1770053004076,2.22758803,105.6,105.58,8.62742685]
[1770053004390,2.22758803,105.61,105.58,18.09890536]
[1770053004887,2.22758803,105.62,105.59,8.62742685]
[1770053005601,2.22758803,105.62,105.6,8.62742685]
[1770053006098,2.22758803,105.62,105.59,8.62742685]
[1770053006264,2.22758803,105.62,105.59,18.09782355]
[1770053009684,2.22758803,105.62,105.6,8.62742685]
[1770053009870,2.22758803,105.61,105.58,18.09848352]
[1770053010885,2.22758803,105.61,105.58,8.62742685]
[1770053011184,2.22758803,105.61,105.59,8.62742685]
[1770053012096,2.22758803,105.61,105.59,18.0979953]
[1770053012396,11.69481768,105.63,105.59,18.0979953]
[1770053012966,2.22758803,105.63,105.6,8.62742685]
[1770053013385,2.22758803,105.63,105.61,8.62742685]
[1770053013588,2.22758803,105.63,105.59,33.14705296]
[1770053013589,2.22758803,105.63,105.6,8.62742685]
[1770053014084,2.22758803,105.63,105.6,18.09703207]
[1770053014491,2.22758803,105.63,105.6,12.91849829]
[1770053014688,2.22758803,105.62,105.59,12.91910452]
[1770053015594,2.22758803,105.61,105.58,12.92015173]
[1770053015789,2.22758803,105.61,105.59,3.44889307]
[1770053016164,2.22758803,105.61,105.58,12.92015173]
[1770053016986,2.22758803,105.61,105.59,3.44889307]
[1770053017191,2.22758803,105.62,105.59,12.91943142]
[1770053017383,2.22758803,105.62,105.59,3.44889307]
[1770053018691,2.22758803,105.61,105.58,3.44889307]
[1770053020187,2.22758803,105.61,105.58,12.92017375]
[1770053021687,2.22758803,105.61,105.59,3.44889307]
[1770053022168,2.22758803,105.61,105.58,3.44889307]
[1770053022492,2.22758803,105.65,105.6,3.44889307]
[1770053022785,2.22758803,105.64,105.61,3.44889307]
[1770053023588,11.69385287,105.64,105.61,3.44889307]
[1770053023898,2.22758803,105.63,105.61,3.44889307]
[1770053024686,2.22758803,105.63,105.6,12.9182068]
[1770053025189,2.22758803,105.63,105.61,12.91765877]
[1770053025385,2.22758803,105.63,105.6,9.4693131]
[1770053025683,2.22758803,105.63,105.61,3.44889307]
[1770053025890,2.22758803,105.65,105.62,3.44889307]
[1770053027791,2.22758803,105.65,105.61,3.44889307]
[1770053027990,2.22758803,105.65,105.62,3.44889307]
[1770053028484,0.1,105.66,105.63,3.44703167]
[1770053028680,0.1,105.66,105.64,3.44703167]
[1770053028886,2.32758803,105.66,105.64,3.44703167]
[1770053029788,0.1,105.66,105.65,3.44703167]
[1770053030189,0.1,105.66,105.64,12.9123812]
[1770053030393,0.1,105.66,105.65,9.46521533]
[1770053030884,0.1,105.66,105.64,12.91263002]
[1770053031688,0.1,105.66,105.65,9.46521533]
[1770053031891,0.1,105.66,105.65,3.44703167]
[1770053032107,3.54703167,105.66,105.58,73.67737791]
[1770053032406,2.22758803,105.64,105.61,12.91547152]
[1770053032776,2.22758803,105.65,105.61,12.91547152]
[1770053033794,2.22758803,105.65,105.62,3.44703167]
[1770053034602,2.32758803,105.66,105.63,3.44703167]
[1770053035396,11.79193707,105.66,105.63,3.44703167]
[1770053035596,2.22758803,105.65,105.63,3.44703167]
[1770053035802,2.22758803,105.65,105.61,3.44703167]
[1770053035993,2.22758803,105.62,105.59,9.4699966]
[1770053036193,2.22758803,105.62,105.59,12.91702827]
[1770053037802,2.22758803,105.61,105.58,9.47103701]
[1770053039179,2.22758803,105.61,105.57,3.44703167]
[1770053040309,2.22758803,105.63,105.59,3.44703167]
[1770053041384,2.22758803,105.62,105.58,36.59724951]
[1770053041593,2.22758803,105.61,105.58,33.15021784]
[1770053041800,2.22758803,105.61,105.58,9.47149081]
[1770053042601,5.6746197,105.61,105.58,9.47149081]
[1770053042986,2.22758803,105.61,105.58,9.47149081]
[1770053044090,15.14343414,105.61,105.58,9.47149081]
[1770053044291,2.22758803,105.61,105.58,9.47149081]
[1770053045303,2.22758803,105.6,105.57,9.47211294]
[1770053045502,2.22758803,105.59,105.56,9.47296339]
[1770053045708,2.22758803,105.57,105.55,9.47390329]
[1770053046598,2.22758803,105.58,105.56,9.47323017]
[1770053046798,2.22758803,105.58,105.55,12.92069626]
[1770053047000,2.22758803,105.58,105.55,9.47366459]
[1770053047203,2.22758803,105.57,105.55,9.47366459]
[1770053047406,5.6746197,105.58,105.55,9.47366459]
[1770053047603,2.22758803,105.58,105.55,9.47366459]
[1770053048407,2.22758803,105.58,105.55,12.92069626]
[1770053048598,2.22758803,105.58,105.55,9.47366459]
[1770053049112,2.22758803,105.57,105.54,9.47464567]
[1770053049298,2.22758803,105.58,105.54,36.60937868]
[1770053049498,5.6746197,105.58,105.54,36.60937868]
[1770053052211,2.22758803,105.57,105.54,36.60937868]
[1770053052612,5.6746197,105.58,105.54,36.60937868]
[1770053054219,2.22758803,105.58,105.55,3.44703167]
[1770053054821,5.6746197,105.59,105.55,12.92051016]
[1770053055114,2.22758803,105.59,105.55,36.60596728]
[1770053055522,2.22758803,105.58,105.55,12.92051016]
[1770053055710,2.22758803,105.58,105.55,9.47347849]
[1770053056396,2.22758803,105.58,105.55,12.92051016]
[1770053056797,2.22758803,105.58,105.54,3.44703167]
[1770053056998,2.22758803,105.57,105.54,3.44703167]
[1770053057316,5.6746197,105.58,105.54,3.44703167]
[1770053058819,2.22758803,105.6,105.58,9.47149081]
[1770053059017,2.22758803,105.61,105.58,12.91852248]
[1770053059315,2.22758803,105.6,105.57,12.91910718]
[1770053059515,2.22758803,105.6,105.56,3.44703167]
[1770053059901,2.22758803,105.6,105.57,12.91928814]
[1770053060510,2.22758803,105.59,105.57,9.47225647]
[1770053061116,12.91613796,105.61,105.58,3.44703167]
[1770053061117,2.22758803,105.61,105.58,3.44703167]
[1770053062201,5.6746197,105.61,105.57,36.60025811]
[1770053062403,2.22758803,105.6,105.57,9.47225647]
[1770053063611,2.22758803,105.6,105.57,3.44703167]
[1770053065420,2.22758803,105.6,105.57,12.91882498]
[1770053066327,11.6950305,105.63,105.59,3.44703167]
[1770053066623,2.22758803,105.62,105.59,3.44703167]
[1770053066811,2.22758803,105.62,105.6,3.44703167]
[1770053067008,2.22758803,105.62,105.59,3.44703167]
[1770053067417,2.22758803,105.62,105.59,12.91697234]
[1770053067832,2.22758803,105.62,105.6,3.44703167]
[1770053068128,2.22758803,105.63,105.6,3.44703167]
[1770053069134,2.22758803,105.63,105.59,33.14642518]
[1770053069329,2.22758803,105.63,105.6,3.44703167]
[1770053069533,2.22758803,105.63,105.6,12.91620709]
[1770053069905,2.22758803,105.62,105.6,3.44703167]
[1770053070106,2.22758803,105.61,105.57,3.44703167]
[1770053070429,2.22758803,105.62,105.59,12.91723309]
[1770053070920,2.22758803,105.62,105.59,3.44703167]
[1770053071308,2.22758803,105.62,105.58,12.9180208]